fUSD/lending_fUSD_20240129
["ID","MTS","AMOUNT","RATE_DAILY","PERIOD"]
[312979269,1706561464413,-517.92,0.00053698,31]
[312979270,1706561464423,-508.49,0.00053698,31]
[312979271,1706561464432,-3477.85,0.00053698,31]
[312979272,1706561464442,-500.0,0.00053698,31]
[312979273,1706561464451,-500.0,0.00053698,31]
[312979274,1706561464461,-500.0,0.00053698,31]
[312979275,1706561464470,-589.88,0.00053698,31]
[312979276,1706561464479,-500.0,0.00053698,31]
[312979277,1706561464489,-1173.01,0.00053698,31]
[312979278,1706561464498,-500.0,0.00053698,31]
[312979279,1706561464508,-850.07,0.00053698,31]
[312979280,1706561464517,-500.0,0.00053698,31]
[312979281,1706561464527,-4113.99,0.00053698,31]
[312979282,1706561464536,-790.48,0.00053698,31]
[312979283,1706561464545,-1441.85,0.00053698,31]
[312979284,1706561464554,-1205.31,0.00053698,31]
[312979285,1706561464564,-926.85,0.00053698,31]
[312979286,1706561464573,-867.01,0.00053698,31]
[312979287,1706561464582,-500.0,0.00053698,31]
[312979288,1706561464591,-573.37,0.00053698,31]
[312979289,1706561464600,-500.0,0.00053698,15]
[312979290,1706561464609,-500.0,0.00053698,31]
[312979291,1706561464618,-500.0,0.00053698,31]
[312979292,1706561464627,-828.34,0.00053698,31]
[312979293,1706561464637,-500.0,0.00053698,14]
[312979294,1706561464646,-500.0,0.00053698,31]
[312979295,1706561464656,-500.0,0.00053698,31]
[312979296,1706561464665,-500.0,0.00053698,31]
[312979297,1706561464674,-628.77,0.00053698,2]
[312979298,1706561464684,-500.0,0.00053698,31]
[312979299,1706561464694,-1106.95,0.00053698,31]
[312979300,1706561464704,-978.52,0.00053698,31]
[312979301,1706561464713,-500.0,0.00053698,31]
[312979302,1706561464723,-2042.22,0.00053698,31]
[312979303,1706561464732,-500.0,0.00053698,31]
[312979304,1706561464741,-500.0,0.00053698,31]
[312979305,1706561464751,-500.0,0.00053698,31]
[312979306,1706561464761,-818.23,0.00053698,31]
[312979307,1706561464773,-500.0,0.00053698,31]
[312979308,1706561464783,-500.0,0.00053698,31]
[312979309,1706561464793,-500.0,0.00053698,31]
[312979310,1706561464803,-1710.59,0.00053698,31]
[312979311,1706561464815,-1423.27,0.00053698,31]
[312979312,1706561464824,-682.21,0.00053698,31]
[312979313,1706561464833,-500.0,0.00053698,31]
[312979314,1706561464842,-500.0,0.00053698,31]
[312979315,1706561464852,-500.0,0.00053698,31]
[312979316,1706561464861,-500.0,0.00053698,31]
[312979317,1706561464871,-500.0,0.00053698,31]
[312979318,1706561464882,-808.28,0.00053698,31]
[312979319,1706561464891,-6188.49,0.00053698,31]
[312979320,1706561464900,-8000.67,0.00053698,31]
[312979321,1706561464910,-500.0,0.00053698,31]
[312979322,1706561464919,-500.0,0.00053698,31]
[312979323,1706561464929,-794.53,0.00053698,31]
[312979324,1706561464938,-3628.8,0.00053698,31]
[312979325,1706561464948,-500.0,0.00053698,31]
[312979326,1706561464959,-500.0,0.00053698,31]
[312979327,1706561464970,-1143.82,0.00053698,31]
[312979328,1706561464981,-1366.43,0.00053698,31]
[312979329,1706561464990,-500.0,0.00053698,31]
[312979330,1706561465000,-2100.64,0.00053698,31]
[312979331,1706561465010,-500.0,0.00053698,31]
[312979332,1706561465019,-8061.28,0.00053698,31]
[312979333,1706561465029,-500.0,0.00053698,31]
[312979334,1706561465039,-684.15,0.00053698,31]
[312979335,1706561465048,-500.0,0.00053698,31]
[312979336,1706561465058,-500.0,0.00053698,31]
[312979337,1706561465068,-508.43,0.00053698,31]
[312979338,1706561465078,-500.0,0.00053698,31]
[312979339,1706561465088,-601.77,0.00053698,31]
[312979340,1706561465097,-1157.8,0.00053698,31]
[312979341,1706561465106,-1282.3,0.00053698,31]
[312979342,1706561465116,-901.62,0.00053698,31]
[312979343,1706561465125,-500.0,0.00053698,31]
[312979344,1706561465134,-807.23,0.00053698,31]
[312979345,1706561465143,-605.34,0.00053698,2]
[312979346,1706561465153,-1189.3,0.00053698,31]
[312979347,1706561465165,-1811.45,0.00053698,31]
[312979348,1706561465174,-1022.88,0.00053698,31]
[312979349,1706561465184,-500.0,0.00053698,31]
[312979350,1706561465196,-500.0,0.00053698,31]
[312979351,1706561465207,-804.97,0.00053698,31]
[312979352,1706561465217,-3273.33,0.00053698,31]
[312979353,1706561465227,-629.27,0.00053698,31]
[312979354,1706561465237,-500.0,0.00053698,31]
[312979355,1706561465246,-500.0,0.00053698,31]
[312979356,1706561465256,-1225.75,0.00053698,31]
[312979357,1706561465267,-500.0,0.00053698,31]
[312979358,1706561465277,-793.45,0.00053698,31]
[312979359,1706561465286,-500.0,0.00053698,31]
[312979360,1706561465296,-500.0,0.00053698,31]
[312979361,1706561465306,-500.0,0.00053698,31]
[312979362,1706561465316,-1464.2,0.00053698,31]
[312979363,1706561465325,-207.12692801,0.00053698,31]
[312979364,1706561465336,-3764.69,0.00053698,5]
[312979365,1706561465345,-154.67281811,0.00053709,60]
[312979366,1706561465355,-158.02937003,0.00053728,60]
[312979367,1706561465365,-2000.0,0.0005373,3]
[312979368,1706561465375,-2000.0,0.0005373,3]
[312979369,1706561465385,-152.47772874,0.0005375,60]
[312979370,1706561465394,-153.29755698,0.0005376,60]
[312979371,1706561465404,-154.0054391,0.00053768,60]
[312979372,1706561465415,-151.013,0.00053798,58]
[312979373,1706561465424,-150.52477513,0.00053804,60]
[312979374,1706561465433,-159.32007806,0.00053806,60]
[312979375,1706561465442,-161.23409422,0.00053813,60]
[312979376,1706561465452,-154.67281811,0.00053819,60]
[312979377,1706561465462,-158.2110657,0.0005382,60]
[312979378,1706561465472,-152.47772874,0.0005385,60]
[312979379,1706561465481,-154.67281811,0.00053857,60]
[312979380,1706561465491,-166.7798007,0.00053863,2]
[312979381,1706561465501,-153.29755698,0.00053864,60]
[312979382,1706561465511,-150.52477513,0.00053876,60]
[312979383,1706561465521,-968.0,0.0005389,2]
[312979384,1706561465531,-818.0,0.0005389,2]
[312979385,1706561465541,-166.53972704,0.00053893,60]
[312979386,1706561465550,-484.47,0.000539,45]
[312979387,1706561465559,-102670.0,0.000539,30]
[312979388,1706561465569,-230.85003972,0.00053911,15]
[312979389,1706561465579,-169.5379911,0.00053926,60]
[312979390,1706561465588,-166.7798007,0.00053935,2]
[312979391,1706561465598,-4839.0640461,0.00053935,2]
[312979392,1706561465607,-166.7798007,0.00053963,2]
[312979393,1706561465616,-166.7798007,0.00053963,2]
[312979394,1706561465626,-5751.9879157,0.00053963,2]
[312979395,1706561465635,-5295.5259809,0.00053963,2]
[312979396,1706561465645,-300.0,0.0005397,7]
[312979397,1706561465654,-504.4,0.00053972,31]
[312979398,1706561465665,-518.52,0.00053972,31]
[312979399,1706561465674,-500.0,0.00053972,31]
[312979400,1706561465683,-500.0,0.00053972,31]
[312979401,1706561465692,-500.0,0.00053972,31]
[312979402,1706561465704,-500.0,0.00053972,31]
[312979403,1706561465714,-500.0,0.00053972,31]
[312979404,1706561465723,-550.0,0.00053972,30]
[312979405,1706561465732,-500.0,0.00053972,31]
[312979406,1706561465742,-368.23638008,0.00053972,31]
[312979407,1706561465751,-1337.94,0.00053972,31]
[312979408,1706561465760,-500.0,0.00053972,31]
[312979409,1706561465770,-500.0,0.00053972,2]
[312979410,1706561465779,-848.08,0.00053972,7]
[312979411,1706561465788,-1389.4,0.00053972,7]
[312979412,1706561465798,-359.1201756,0.00053972,31]
[312979413,1706561465807,-1135.76,0.00053972,31]
[312979414,1706561465817,-500.0,0.00053972,7]
[312979415,1706561465826,-500.0,0.00053972,31]
[312979416,1706561465836,-500.0,0.00053972,31]
[312979417,1706561465846,-500.0,0.00053972,31]
[312979418,1706561465855,-1571.78,0.00053972,2]
[312979419,1706561465865,-500.0,0.00053972,31]
[312979420,1706561465874,-500.0,0.00053972,31]
[312979421,1706561465884,-500.0,0.00053972,31]
[312979422,1706561465893,-500.0,0.00053972,31]
[312979423,1706561465903,-736.08,0.00053972,31]
[312979424,1706561465912,-500.0,0.00053972,31]
[312979425,1706561465922,-545.66,0.00053972,31]
[312979426,1706561465932,-556.58,0.00053972,31]
[312979427,1706561465941,-500.0,0.00053972,31]
[312979428,1706561465951,-500.0,0.00053972,31]
[312979429,1706561465960,-500.0,0.00053972,31]
[312979430,1706561465970,-500.0,0.00053972,31]
[312979431,1706561465980,-580.98,0.00053972,31]
[312979432,1706561465989,-500.0,0.00053972,31]
[312979433,1706561465999,-6101.25,0.00053972,31]
[312979434,1706561466008,-500.0,0.00053972,31]
[312979435,1706561466018,-500.0,0.00053972,31]
[312979436,1706561466028,-500.0,0.00053972,31]
[312979437,1706561466038,-500.0,0.00053972,31]
[312979438,1706561466048,-912.84,0.00053972,31]
[312979439,1706561466058,-1015.38,0.00053972,31]
[312979440,1706561466129,-500.0,0.00053972,2]
[312979441,1706561466143,-500.0,0.00053972,2]
[312979442,1706561466153,-1481.63,0.00053972,31]
[312979443,1706561466162,-635.59,0.00053972,31]
[312979444,1706561466172,-500.0,0.00053972,31]
[312979445,1706561466182,-546.29,0.00053972,31]
[312979446,1706561466194,-760.0,0.00053972,31]
[312979447,1706561466203,-500.0,0.00053972,7]
[312979448,1706561466213,-657.66,0.00053972,31]
[312979449,1706561466223,-523.24,0.00053972,31]
[312979450,1706561466234,-500.0,0.00053972,31]
[312979451,1706561466244,-3364.15,0.00053972,31]
[312979452,1706561466254,-500.0,0.00053972,31]
[312979453,1706561466264,-1280.35,0.00053972,31]
[312979454,1706561466276,-797.69,0.00053972,31]
[312979455,1706561466287,-500.0,0.00053972,31]
[312979456,1706561466298,-500.0,0.00053972,31]
[312979457,1706561466309,-948.4,0.00053972,31]
[312979458,1706561466319,-749.54,0.00053972,31]
[312979459,1706561466329,-1581.43,0.00053972,31]
[312979460,1706561466340,-2715.29,0.00053972,31]
[312979461,1706561466351,-500.0,0.00053972,31]
[312979462,1706561466361,-1018.31,0.00053972,31]
[312979463,1706561466372,-1796.24,0.00053972,31]
[312979464,1706561466383,-500.0,0.00053972,31]
[312979465,1706561466394,-500.0,0.00053972,31]
[312979466,1706561466405,-636.41,0.00053972,2]
[312979467,1706561466417,-670.5,0.00053972,31]
[312979468,1706561466428,-2496.34,0.00053972,31]
[312979469,1706561466439,-337.55919393,0.00053972,31]
[312979470,1706561466449,-925.06,0.00053972,31]
[312979471,1706561466460,-500.0,0.00053972,31]
[312979472,1706561466471,-3323.72,0.00053972,31]
[312979473,1706561466482,-4642.25,0.00053972,31]
[312979474,1706561466493,-500.0,0.00053972,31]
[312979475,1706561466505,-821.87,0.00053972,31]
[312979476,1706561466517,-500.0,0.00053972,31]
[312979477,1706561466527,-910.37,0.00053972,31]
[312979478,1706561466538,-500.0,0.00053972,31]
[312979479,1706561466549,-500.0,0.00053972,31]
[312979480,1706561466561,-500.0,0.00053972,31]
[312979481,1706561466572,-1383.03,0.00053972,31]
[312979482,1706561466582,-1804.2,0.00053972,31]
[312979483,1706561466591,-1153.74,0.00053972,31]
[312979484,1706561466601,-500.0,0.00053972,31]
[312979485,1706561466610,-912.99,0.00053972,31]
[312979486,1706561466620,-6303.34,0.00053972,31]
[312979487,1706561466631,-1809.69,0.00053972,7]
[312979488,1706561466641,-500.0,0.00053972,31]
[312979489,1706561466652,-1137.49,0.00053972,31]
[312979490,1706561466663,-525.1,0.00053972,31]
[312979491,1706561466673,-500.0,0.00053972,31]
[312979492,1706561466683,-500.0,0.00053972,31]
[312979493,1706561466693,-897.67,0.00053972,31]
[312979494,1706561466703,-714.27,0.00053972,31]
[312979495,1706561466712,-1229.1,0.00053972,31]
[312979496,1706561466722,-2620.82,0.00053972,5]
[312979497,1706561466731,-500.0,0.00053972,31]
[312979498,1706561466740,-500.0,0.00053972,31]
[312979499,1706561466750,-1096.19,0.00053972,31]
[312979500,1706561466759,-1643.14,0.00053972,31]
[312979501,1706561466768,-500.0,0.00053972,31]
[312979502,1706561466778,-826.12,0.00053972,31]
[312979503,1706561466787,-500.0,0.00053972,31]
[312979504,1706561466797,-500.0,0.00053972,31]
[312979505,1706561466806,-968.31,0.00053972,31]
[312979506,1706561466815,-2224.65,0.00053972,31]
[312979507,1706561466824,-500.0,0.00053972,31]
[312979508,1706561466834,-1469.83,0.00053972,31]
[312979509,1706561466844,-500.0,0.00053972,31]
[312979510,1706561466854,-900.23,0.00053972,31]
[312979511,1706561466865,-1865.05,0.00053972,31]
[312979512,1706561466875,-4339.46,0.00053972,31]
[312979513,1706561466885,-517.92,0.00053972,31]
[312979514,1706561466895,-508.49,0.00053972,31]
[312979515,1706561466907,-3477.85,0.00053972,31]
[312979516,1706561466916,-500.0,0.00053972,31]
[312979517,1706561466925,-500.0,0.00053972,31]
[312979518,1706561466934,-1000.0,0.00053972,120]
[312979519,1706561466946,-500.0,0.00053972,31]
[312979520,1706561466956,-1000.0,0.00053972,120]
[312979521,1706561466966,-1000.0,0.00053972,120]
[312979522,1706561466977,-476.69392481,0.00053972,120]
[312979523,1706561466987,-589.88,0.00053972,31]
[312979524,1706561466997,-500.0,0.00053972,31]
[312979525,1706561467011,-1173.01,0.00053972,31]
[312979526,1706561467021,-500.0,0.00053972,31]
[312979527,1706561467031,-850.07,0.00053972,31]
[312979528,1706561467040,-500.0,0.00053972,31]
[312979529,1706561467052,-4113.99,0.00053972,31]
[312979530,1706561467062,-790.48,0.00053972,31]
[312979531,1706561467072,-1441.85,0.00053972,31]
[312979532,1706561467084,-1205.31,0.00053972,31]
[312979533,1706561467093,-926.85,0.00053972,31]
[312979534,1706561467103,-867.01,0.00053972,31]
[312979535,1706561467113,-500.0,0.00053972,31]
[312979536,1706561467123,-573.37,0.00053972,31]
[312979537,1706561467133,-500.0,0.00053972,15]
[312979538,1706561467142,-500.0,0.00053972,31]
[312979539,1706561467151,-828.34,0.00053972,31]
[312979540,1706561467166,-500.0,0.00053972,14]
[312979541,1706561467175,-500.0,0.00053972,31]
[312979542,1706561467186,-500.0,0.00053972,31]
[312979543,1706561467196,-500.0,0.00053972,31]
[312979544,1706561467207,-500.0,0.00053972,31]
[312979545,1706561467225,-628.77,0.00053972,2]
[312979546,1706561467235,-500.0,0.00053972,31]
[312979547,1706561467245,-1106.95,0.00053972,31]
[312979548,1706561467255,-978.52,0.00053972,31]
[312979549,1706561467265,-306.73293026,0.00053972,31]
[312979550,1706561467275,-2042.22,0.00053972,31]
[312979551,1706561467288,-500.0,0.00053972,31]
[312979552,1706561467303,-500.0,0.00053972,31]
[312979553,1706561467313,-500.0,0.00053972,31]
[312979554,1706561467323,-818.23,0.00053972,31]
[312979555,1706561467333,-500.0,0.00053972,31]
[312979556,1706561467342,-500.0,0.00053972,31]
[312979557,1706561467352,-500.0,0.00053972,31]
[312979558,1706561467362,-1710.59,0.00053972,31]
[312979559,1706561467372,-1423.27,0.00053972,31]
[312979560,1706561467390,-682.21,0.00053972,31]
[312979561,1706561467400,-500.0,0.00053972,31]
[312979562,1706561467416,-500.0,0.00053972,31]
[312979563,1706561467426,-500.0,0.00053972,31]
[312979564,1706561467436,-500.0,0.00053972,31]
[312979565,1706561467446,-500.0,0.00053972,31]
[312979566,1706561467457,-808.28,0.00053972,31]
[312979567,1706561467466,-6188.49,0.00053972,31]
[312979568,1706561467476,-8000.67,0.00053972,31]
[312979569,1706561467485,-500.0,0.00053972,31]
[312979570,1706561467494,-500.0,0.00053972,31]
[312979571,1706561467504,-794.53,0.00053972,31]
[312979572,1706561467514,-3628.8,0.00053972,31]
[312979573,1706561467524,-500.0,0.00053972,31]
[312979574,1706561467534,-500.0,0.00053972,31]
[312979575,1706561467544,-1143.82,0.00053972,31]
[312979576,1706561467554,-1366.43,0.00053972,31]
[312979577,1706561467563,-500.0,0.00053972,31]
[312979578,1706561467573,-2100.64,0.00053972,31]
[312979579,1706561467582,-500.0,0.00053972,31]
[312979580,1706561467591,-8061.28,0.00053972,31]
[312979581,1706561467601,-500.0,0.00053972,31]
[312979582,1706561467611,-684.15,0.00053972,31]
[312979583,1706561467620,-500.0,0.00053972,31]
[312979584,1706561467630,-500.0,0.00053972,31]
[312979585,1706561467639,-508.43,0.00053972,31]
[312979586,1706561467650,-500.0,0.00053972,31]
[312979587,1706561467660,-601.77,0.00053972,31]
[312979588,1706561467669,-1282.3,0.00053972,31]
[312979589,1706561467680,-1157.8,0.00053972,31]
[312979590,1706561467690,-901.62,0.00053972,31]
[312979591,1706561467700,-500.0,0.00053972,31]
[312979592,1706561467709,-807.23,0.00053972,31]
[312979593,1706561467720,-605.34,0.00053972,2]
[312979594,1706561467730,-1189.3,0.00053972,31]
[312979595,1706561467739,-1811.45,0.00053972,31]
[312979596,1706561467749,-1022.88,0.00053972,31]
[312979597,1706561467760,-500.0,0.00053972,31]
[312979598,1706561467770,-500.0,0.00053972,31]
[312979599,1706561467780,-804.97,0.00053972,31]
[312979600,1706561467789,-3273.33,0.00053972,31]
[312979601,1706561467799,-629.27,0.00053972,31]
[312979602,1706561467808,-500.0,0.00053972,31]
[312979603,1706561467818,-500.0,0.00053972,31]
[312979604,1706561467828,-1225.75,0.00053972,31]
[312979605,1706561467838,-500.0,0.00053972,31]
[312979606,1706561467848,-793.45,0.00053972,31]
[312979607,1706561467857,-500.0,0.00053972,31]
[312979608,1706561467866,-500.0,0.00053972,31]
[312979609,1706561467875,-500.0,0.00053972,31]
[312979610,1706561467885,-1464.2,0.00053972,31]
[312979611,1706561467894,-3764.69,0.00053972,5]
[312979612,1706561467904,-2039.0,0.0005399,2]
[312979613,1706561467914,-1592.0,0.0005399,2]
[312979614,1706561467924,-493.87646853,0.00053999,90]
[312979615,1706561467933,-3304.27043834,0.00053999,2]
[312979616,1706561467943,-150.0,0.00053999,13]
[312979617,1706561467953,-150.0,0.00053999,13]
[312979618,1706561467963,-50000.0,0.00054,44]
[312979619,1706561467972,-100653.99967504,0.00054,30]
[312979620,1706561467982,-4693.66485436,0.00054,30]
[312979621,1706561467991,-300.0,0.00054,55]
[312979622,1706561468001,-10000.0,0.00054,120]
[312979623,1706561468010,-10000.0,0.00054,120]
[312979624,1706561468020,-10000.0,0.00054,120]
[312979625,1706561468029,-5696.0,0.00054,120]
[312979626,1706561468039,-260037.90666268,0.00054,30]
[312979627,1706561468048,-2000.0,0.00054,120]
[312979628,1706561468058,-509.96561371,0.00054,120]
[312979629,1706561468068,-9930.0,0.00054,120]
[312979630,1706561468077,-1000.0,0.00054,120]
[312979631,1706561468087,-50000.0,0.00054,120]
[312979632,1706561468096,-12635.48758172,0.00054,120]
[312979633,1706561468106,-529.27678286,0.00054,120]
[312979634,1706561468116,-398.89675473,0.00054,120]
[312979635,1706561468125,-250.0,0.00054,120]
[312979636,1706561468134,-1175.49936326,0.00054,7]
[312979637,1706561468143,-393.52819169,0.00054,12]
[312979638,1706561468153,-19714.0,0.00054,120]
[312979639,1706561468163,-1000.0,0.00054,120]
[312979640,1706561468172,-202.64,0.00054,20]
[312979641,1706561468184,-3002.89855171,0.00054,120]
[312979642,1706561468193,-3268.35813222,0.00054,30]
[312979643,1706561468203,-1322.992246,0.00054,120]
[312979644,1706561468214,-793.68,0.00054,120]
[312979645,1706561468223,-387.30557287,0.00054,120]
[312979646,1706561468233,-703.09932216,0.00054,120]
[312979647,1706561468243,-686.13398483,0.00054,90]
[312979648,1706561468252,-1007.76451812,0.00054,10]
[312979649,1706561468262,-55842.0,0.00054,120]
[312979650,1706561468271,-1233.62059668,0.00054,15]
[312979651,1706561468281,-2000.0,0.00054,120]
[312979652,1706561468290,-40324.71954072,0.00054,2]
[312979653,1706561468300,-25000.0,0.00054,7]
[312979654,1706561468311,-14040.41136481,0.00054,120]
[312979655,1706561468320,-500.0,0.00054,120]
[312979656,1706561468330,-500.0,0.00054,120]
[312979657,1706561468339,-165.0,0.00054,30]
[312979658,1706561468349,-300.0,0.00054,32]
[312979659,1706561468360,-15000.0,0.00054,120]
[312979660,1706561468369,-168.39041318,0.00054,7]
[312979661,1706561468379,-500.0,0.00054,10]
[312979662,1706561468388,-200.0,0.00054,2]
[312979663,1706561468398,-1207.51589181,0.00054,4]
[312979664,1706561468407,-960.39447797,0.00054,30]
[312979665,1706561468416,-2228.29021066,0.00054,15]
[312979666,1706561468425,-5000.0,0.00054,2]
[312979667,1706561468435,-163.84875825,0.00054,2]
[312979668,1706561468445,-1977.444894,0.00054,38]
[312979669,1706561468454,-490.0,0.00054,44]
[312979670,1706561468464,-200.0,0.00054,21]
[312979671,1706561468474,-949.0,0.00054,60]
[312979672,1706561468483,-13953.0,0.00054,60]
[312979673,1706561468493,-554.0,0.00054,60]
[312979674,1706561468503,-2778.0,0.00054,60]
[312979675,1706561468512,-606.49063651,0.00054,60]
[312979676,1706561468522,-540.0,0.00054,60]
[312979677,1706561468531,-2509.0,0.00054,60]
[312979678,1706561468541,-306.682723,0.00054,38]
[312979679,1706561468551,-306.682723,0.00054,38]
[312979680,1706561468561,-151.0,0.00054,14]
[312979681,1706561468571,-151.0,0.00054,14]
[312979682,1706561468580,-151.0,0.00054,14]
[312979683,1706561468590,-166.7798007,0.00054025,2]
[312979684,1706561468599,-6208.4498505,0.00054025,2]
[312979685,1706561468609,-153.29755698,0.00054028,60]
[312979686,1706561468619,-154.67281811,0.00054056,60]
[312979687,1706561468629,-157.47372315,0.0005406,60]
[312979688,1706561468638,-259.29770509,0.00054062,30]
[312979689,1706561468647,-2338.0,0.00054062,30]
[312979690,1706561468657,-533.0,0.00054062,30]
[312979691,1706561468667,-1532.66914428,0.00054062,30]
[312979692,1706561468677,-150.0,0.00054074,2]
[312979693,1706561468686,-296.0,0.0005409,2]
[312979694,1706561468697,-166.53972704,0.00054091,60]
[312979695,1706561468706,-437.92916905,0.000541,90]
[312979696,1706561468717,-3140.78338318,0.000541,2]
[312979697,1706561468727,-814.79715124,0.000541,120]
[312979698,1706561468736,-4831.50665021,0.000541,2]
[312979699,1706561468747,-500.0,0.0005412,120]
[312979700,1706561468757,-163.75140311,0.00054148,60]
[312979701,1706561468767,-161.23409422,0.00054161,60]
[312979702,1706561468778,-158.93642252,0.00054177,60]
[312979703,1706561468791,-110087.0,0.0005418,120]
[312979704,1706561468801,-238.0,0.0005419,2]
[312979705,1706561468812,-186.0,0.0005419,2]
[312979706,1706561468832,-151.0129,0.00054198,59]
[312979707,1706561468841,-426784.82020433,0.000542,120]
[312979708,1706561469118,-73215.17979567,0.000542,120]
[312979709,1706561469128,-592910.74,0.000542,120]
[312979710,1706561469138,-151.0,0.000542,14]
[312979711,1706561469149,-1174.62985108,0.000542,2]
[312979712,1706561469161,-160.05259477,0.00054244,60]
[312979713,1706561469174,-504.4,0.00054246,120]
[312979714,1706561469188,-518.52,0.00054246,120]
[312979715,1706561469205,-500.0,0.00054246,120]
[312979716,1706561469215,-500.0,0.00054246,120]
[312979717,1706561469225,-500.0,0.00054246,120]
[312979718,1706561469235,-500.0,0.00054246,120]
[312979719,1706561469246,-500.0,0.00054246,120]
[312979720,1706561469256,-550.0,0.00054246,30]
[312979721,1706561469268,-500.0,0.00054246,120]
[312979722,1706561469278,-1337.94,0.00054246,120]
[312979723,1706561469288,-500.0,0.00054246,120]
[312979724,1706561469298,-500.0,0.00054246,2]
[312979725,1706561469307,-848.08,0.00054246,7]
[312979726,1706561469317,-1389.4,0.00054246,7]
[312979727,1706561469327,-1135.76,0.00054246,120]
[312979728,1706561469337,-500.0,0.00054246,7]
[312979729,1706561469347,-500.0,0.00054246,120]
[312979730,1706561469357,-500.0,0.00054246,120]
[312979731,1706561469366,-500.0,0.00054246,120]
[312979732,1706561469376,-1571.78,0.00054246,2]
[312979733,1706561469386,-500.0,0.00054246,120]
[312979734,1706561469396,-500.0,0.00054246,120]
[312979735,1706561469406,-500.0,0.00054246,120]
[312979736,1706561469418,-500.0,0.00054246,120]
[312979737,1706561469427,-736.08,0.00054246,120]
[312979738,1706561469437,-500.0,0.00054246,120]
[312979739,1706561469447,-545.66,0.00054246,120]
[312979740,1706561469457,-556.58,0.00054246,120]
[312979741,1706561469467,-500.0,0.00054246,120]
[312979742,1706561469477,-500.0,0.00054246,120]
[312979743,1706561469487,-500.0,0.00054246,120]
[312979744,1706561469497,-500.0,0.00054246,120]
[312979745,1706561469522,-580.98,0.00054246,120]
[312979746,1706561469541,-500.0,0.00054246,120]
[312979747,1706561469558,-6101.25,0.00054246,120]
[312979748,1706561469579,-222.92,0.00054246,120]
[312979749,1706561469595,-500.0,0.00054246,120]
[312979750,1706561469606,-500.0,0.00054246,120]
[312979751,1706561469618,-500.0,0.00054246,120]
[312979752,1706561469628,-912.84,0.00054246,120]
[312979753,1706561469639,-1015.38,0.00054246,120]
[312979754,1706561469651,-500.0,0.00054246,2]
[312979755,1706561469662,-500.0,0.00054246,2]
[312979756,1706561469673,-1481.63,0.00054246,120]
[312979757,1706561469684,-635.59,0.00054246,120]
[312979758,1706561469694,-500.0,0.00054246,120]
[312979759,1706561469705,-546.29,0.00054246,120]
[312979760,1706561469716,-760.0,0.00054246,120]
[312979761,1706561469726,-506.24312334,0.00054246,7]
[312979762,1706561469736,-657.66,0.00054246,120]
[312979763,1706561469745,-523.24,0.00054246,120]
[312979764,1706561469760,-500.0,0.00054246,120]
[312979765,1706561469786,-3364.15,0.00054246,120]
[312979766,1706561469797,-500.0,0.00054246,120]
[312979767,1706561469810,-1280.35,0.00054246,120]
[312979768,1706561469837,-797.69,0.00054246,120]